bitfinex/quotes_BTCUSD_20250118
["timestamp","ask_amount","ask_price","bid_price","bid_amount"]
[1737166465660,0.97345266,104370.0,104350.0,0.00061873]
[1737166465877,0.30614099,104360.0,104350.0,0.00061873]
[1737166467910,1.29482905,104360.0,104350.0,0.00061873]
[1737166469178,1.0377291,104360.0,104350.0,0.00061873]
[1737166473142,1.04756604,104360.0,104350.0,0.00061873]
[1737166473564,1.0377291,104360.0,104350.0,0.00061873]
[1737166474509,1.0381572,104360.0,104350.0,0.00061873]
[1737166474714,1.05688192,104360.0,104350.0,0.00061873]
[1737166475946,1.31430488,104360.0,104350.0,0.00061873]
[1737166476760,0.58271677,104360.0,104350.0,0.00061873]
[1737166477915,0.87195422,104360.0,104350.0,0.00061873]
[1737166481515,1.31538159,104360.0,104350.0,0.00061873]
[1737166482038,1.41538159,104360.0,104350.0,0.00061873]
[1737166482284,1.18633788,104360.0,104350.0,0.07601873]
[1737166482469,1.24187697,104360.0,104350.0,0.07601873]
[1737166483666,0.50921215,104360.0,104350.0,0.07601873]
[1737166485527,0.40921215,104360.0,104350.0,0.07601873]
[1737166485733,0.40921215,104360.0,104350.0,0.16226673]
[1737166486134,0.50921215,104360.0,104350.0,0.16226673]
[1737166486335,0.40921215,104360.0,104350.0,0.16226673]
[1737166486915,0.25785106,104360.0,104350.0,0.16226673]
[1737166487132,0.25785106,104360.0,104350.0,0.20766673]
[1737166487762,0.35785106,104360.0,104350.0,0.20766673]
[1737166488924,0.31489462,104360.0,104350.0,0.20766673]
[1737166489904,0.48644885,104360.0,104350.0,0.20766673]
[1737166492326,0.6150796,104360.0,104350.0,0.20766673]
[1737166493011,0.6150796,104360.0,104350.0,0.20770673]
[1737166493182,0.67061869,104360.0,104350.0,0.20770673]
[1737166495511,0.67035378,104360.0,104350.0,0.20757093]
[1737166501450,0.61481469,104360.0,104350.0,0.20757093]
[1737166502558,0.51481469,104360.0,104350.0,0.20757093]
[1737166503310,0.214516,104360.0,104350.0,0.20757093]
[1737166504389,0.08588525,104360.0,104350.0,0.20757093]
[1737166504904,0.08588525,104360.0,104350.0,0.45681174]
[1737166506676,0.00016319,104360.0,104350.0,0.45681174]
[1737166509243,0.00016319,104360.0,104350.0,0.51235083]
[1737166509462,0.00016319,104360.0,104350.0,0.45681174]
[1737166510168,0.00016319,104360.0,104350.0,0.54221637]
[1737166510371,0.00016319,104360.0,104350.0,0.51235083]
[1737166510787,0.00016319,104360.0,104350.0,0.54221087]
[1737166511226,0.00016319,104360.0,104350.0,0.51235083]
[1737166512336,0.00016319,104360.0,104350.0,0.83475083]
[1737166513016,0.00016319,104360.0,104350.0,0.86460137]
[1737166515935,0.00016319,104360.0,104350.0,0.92014046]
[1737166516138,0.00016319,104360.0,104350.0,0.86460137]
[1737166516544,0.00016319,104360.0,104350.0,0.92014046]
[1737166516747,0.00016319,104360.0,104350.0,0.86460137]
[1737166517208,0.00016319,104360.0,104350.0,0.92014046]
[1737166517903,0.00016319,104360.0,104350.0,0.86460137]
[1737166518477,0.00016319,104360.0,104350.0,0.92014046]
[1737166518685,0.00016319,104360.0,104350.0,1.00623345]
[1737166519387,0.00016319,104360.0,104350.0,1.66873345]
[1737166519388,1.9e-07,104360.0,104350.0,1.66873345]
[1737166519610,0.00031585,104370.0,104360.0,0.360839]
[1737166519832,0.00031585,104370.0,104360.0,0.60632853]
[1737166520053,0.00031585,104370.0,104360.0,1.49122853]
[1737166520269,8.5e-07,104370.0,104360.0,1.64676762]
[1737166520497,8.5e-07,104370.0,104360.0,1.59122853]
[1737166520735,8.5e-07,104370.0,104360.0,1.64676762]
[1737166522131,8.5e-07,104370.0,104360.0,1.67732152]
[1737166523255,8.5e-07,104370.0,104360.0,1.96477152]
[1737166524130,8.5e-07,104370.0,104360.0,2.09390853]
[1737166525493,8.5e-07,104370.0,104360.0,1.96477152]
[1737166526592,8.5e-07,104370.0,104360.0,1.98400611]
[1737166527816,8.5e-07,104370.0,104360.0,1.89791312]
[1737166528807,8.5e-07,104370.0,104360.0,1.90207863]
[1737166529021,8.5e-07,104370.0,104360.0,1.90739863]
[1737166543368,8.5e-07,104370.0,104360.0,1.90829764]
[1737166547438,8.5e-07,104370.0,104360.0,1.96383673]
[1737166547612,8.5e-07,104370.0,104360.0,1.90829764]
[1737166549207,8.5e-07,104370.0,104360.0,1.79721946]
[1737166549417,8.5e-07,104370.0,104360.0,1.99439063]
[1737166550862,8.5e-07,104370.0,104360.0,1.69125154]
[1737166551440,8.5e-07,104370.0,104360.0,1.74679063]
[1737166552905,8.5e-07,104370.0,104360.0,1.87592764]
[1737166553971,8.5e-07,104370.0,104360.0,2.04807765]
[1737166557129,8.5e-07,104370.0,104360.0,2.17714937]
[1737166558434,8.5e-07,104370.0,104360.0,2.04801236]
[1737166560311,8.5e-07,104370.0,104360.0,2.17695952]
[1737166561522,8.5e-07,104370.0,104360.0,2.04801236]
[1737166564984,8.5e-07,104370.0,104360.0,1.91891354]
[1737166567100,8.5e-07,104370.0,104360.0,2.04191354]
[1737166567311,8.5e-07,104370.0,104360.0,2.17935263]
[1737166567517,8.5e-07,104370.0,104360.0,2.12381354]
[1737166572033,8.5e-07,104370.0,104360.0,2.16212154]
[1737166574007,8.5e-07,104370.0,104360.0,2.08022154]
[1737166577733,8.5e-07,104370.0,104360.0,2.03647089]
[1737166579347,8.5e-07,104370.0,104360.0,1.91347089]
[1737166579480,0.07950085,104370.0,104360.0,1.91347089]
[1737166588113,8.5e-07,104370.0,104360.0,2.03647089]
[1737166588335,8.5e-07,104370.0,104360.0,2.11357089]
[1737166596872,8.5e-07,104370.0,104360.0,2.03647089]
[1737166602239,8.5e-07,104370.0,104360.0,1.93647089]
[1737166602453,0.07950085,104370.0,104360.0,1.93647089]
[1737166604894,0.12940085,104370.0,104360.0,1.79707271]
[1737166605107,0.12940085,104370.0,104360.0,1.8579318]
[1737166607022,0.12940085,104370.0,104360.0,1.91347089]
[1737166607239,0.12940085,104370.0,104360.0,2.12871146]
[1737166608096,0.12940085,104370.0,104360.0,1.58921146]
[1737166608464,0.12940085,104370.0,104360.0,1.53367237]
[1737166609971,0.12940085,104370.0,104360.0,1.58921146]
[1737166610515,0.12940085,104370.0,104360.0,1.33099556]
[1737166615835,0.12940085,104370.0,104360.0,1.32567556]
[1737166616062,0.12940085,104370.0,104360.0,1.33099556]
[1737166618285,0.12940085,104370.0,104360.0,1.63219922]
[1737166619186,0.12940085,104370.0,104360.0,1.57666013]
[1737166619437,0.12940085,104370.0,104360.0,1.49656645]
[1737166619670,0.12940085,104370.0,104360.0,1.58793684]
[1737166619886,0.13370278,104370.0,104360.0,1.58793684]
[1737166620102,0.12940085,104370.0,104360.0,1.58793684]
[1737166620324,0.13380572,104370.0,104360.0,1.58793684]
[1737166620532,0.13380572,104370.0,104360.0,1.15396749]
[1737166620738,0.13380572,104370.0,104360.0,0.94404692]
[1737166621610,0.13380572,104370.0,104360.0,0.79284326]
[1737166622448,0.13380572,104370.0,104360.0,0.70679287]
[1737166623316,0.13380572,104370.0,104360.0,0.67162233]
[1737166623531,0.13380572,104370.0,104360.0,0.67694233]
[1737166632359,0.13380572,104370.0,104360.0,0.73248142]
[1737166632559,0.00440572,104370.0,104360.0,0.81784539]
[1737166632774,0.00440572,104370.0,104360.0,1.18644539]
[1737166632985,0.00440572,104370.0,104360.0,1.26424539]
[1737166633400,0.00440572,104370.0,104360.0,1.25892539]
[1737166633635,0.00440572,104370.0,104360.0,1.86674001]
[1737166634385,7.2e-07,104370.0,104360.0,1.98974001]
[1737166634602,0.000428,104380.0,104370.0,0.086231]
[1737166634809,0.000428,104380.0,104370.0,0.27179365]
[1737166635153,0.000428,104380.0,104370.0,0.27083578]
[1737166635716,0.000428,104380.0,104370.0,0.55827578]
[1737166636118,0.000428,104380.0,104370.0,0.77323909]
[1737166636537,5.72e-06,104380.0,104370.0,0.77323909]
[1737166638029,5.72e-06,104380.0,104370.0,1.09563909]
[1737166640057,5.72e-06,104380.0,104370.0,1.15117818]
[1737166640356,5.72e-06,104380.0,104370.0,1.09563909]
[1737166641585,5.72e-06,104380.0,104370.0,1.15117818]
[1737166647308,5.72e-06,104380.0,104370.0,1.15207698]
[1737166647903,5.72e-06,104380.0,104370.0,1.09653789]
[1737166650186,5.72e-06,104380.0,104370.0,1.24653789]
[1737166652639,5.72e-06,104380.0,104370.0,1.25185789]
[1737166652874,5.72e-06,104380.0,104370.0,1.30739698]
[1737166654134,5.72e-06,104380.0,104370.0,1.33039698]
[1737166656076,5.72e-06,104380.0,104370.0,2.25725393]
[1737166659303,5.72e-06,104380.0,104370.0,2.04201336]
[1737166667305,5.72e-06,104380.0,104370.0,2.04107774]
[1737166667719,0.125628,104390.0,104380.0,0.408623]
[1737166667926,0.12613558,104390.0,104380.0,0.94149687]
[1737166670989,0.12613558,104390.0,104380.0,0.97980387]
[1737166672273,0.12613558,104390.0,104380.0,1.0656799]
[1737166673075,0.12613558,104390.0,104380.0,1.07517274]
[1737166674248,0.12613558,104390.0,104380.0,1.09469094]
[1737166676384,0.12613558,104390.0,104380.0,1.22377822]
[1737166677767,0.12613558,104390.0,104380.0,1.3958946]
[1737166678904,0.12613558,104390.0,104380.0,1.61113517]
[1737166679579,0.12613558,104390.0,104380.0,1.55559608]
[1737166679973,0.12613558,104390.0,104380.0,1.46972005]
[1737166689357,0.00133558,104390.0,104380.0,1.52525914]
[1737166690840,0.00133558,104390.0,104380.0,1.39617186]
[1737166693654,0.00133558,104390.0,104380.0,1.39707066]
[1737166695486,0.00133558,104390.0,104380.0,1.34153157]
[1737166695692,0.00133558,104390.0,104380.0,1.22495428]
[1737166696941,0.00133558,104390.0,104380.0,1.48317018]
[1737166697941,0.00133558,104390.0,104380.0,1.22495428]
[1737166699953,0.00133558,104390.0,104380.0,1.48317018]
[1737166702309,0.08423558,104390.0,104380.0,1.48317018]
[1737166703655,0.08423558,104390.0,104380.0,1.42763109]
[1737166703871,0.08423558,104390.0,104380.0,1.48317018]
[1737166704673,0.08423558,104390.0,104380.0,1.22495428]
[1737166705861,0.08423558,104390.0,104380.0,1.48317018]
[1737166707663,0.08423558,104390.0,104380.0,1.42763109]
[1737166711078,0.08423558,104390.0,104380.0,1.48317018]
[1737166711492,0.08423558,104390.0,104380.0,1.42763109]
[1737166713180,0.13073558,104390.0,104380.0,1.366772]
[1737166713353,0.13073558,104390.0,104380.0,1.372092]
[1737166713560,0.13073558,104390.0,104380.0,1.42231109]
[1737166713765,0.13073558,104390.0,104380.0,1.42763109]
[1737166714207,0.13073558,104390.0,104380.0,1.48317018]
[1737166714412,0.13073558,104390.0,104380.0,1.42763109]
[1737166714593,0.13073558,104390.0,104380.0,1.48317018]
[1737166714832,0.13073558,104390.0,104380.0,1.34162464]
[1737166715937,0.13073558,104390.0,104380.0,1.16941519]
[1737166720475,0.13073558,104390.0,104380.0,1.34141979]
[1737166721702,0.13073558,104390.0,104380.0,1.47042205]
[1737166725936,0.13073558,104390.0,104380.0,1.34141979]
[1737166727166,0.00133558,104390.0,104380.0,1.39695888]
[1737166727372,0.00133558,104390.0,104380.0,1.62355888]
[1737166728725,0.00133558,104390.0,104380.0,1.49452961]
[1737166737525,0.00133558,104390.0,104380.0,1.41792961]
[1737166740058,0.00133558,104390.0,104380.0,1.49702961]
[1737166740265,5.8e-07,104390.0,104380.0,1.6755687]
[1737166741537,5.8e-07,104390.0,104380.0,2.2150687]
[1737166744948,0.05582837,104410.0,104400.0,0.19728418]
[1737166745172,0.0558791,104410.0,104400.0,0.32634987]
[1737166745387,0.0558791,104410.0,104400.0,0.27081078]
[1737166745874,0.0558791,104410.0,104400.0,0.59853078]
[1737166746659,0.0558791,104410.0,104400.0,0.68443931]
[1737166748241,0.0558791,104410.0,104400.0,0.97179931]
[1737166748921,0.1054791,104410.0,104400.0,0.97179931]
[1737166749137,0.1054791,104410.0,104400.0,0.91626022]
[1737166749350,0.1054791,104410.0,104400.0,0.88643534]
[1737166750487,0.1059072,104410.0,104400.0,0.81029558]
[1737166751301,0.1059072,104410.0,104400.0,0.80497558]
[1737166751522,0.1059072,104410.0,104400.0,0.81029558]
[1737166751727,0.1059072,104410.0,104400.0,0.48789558]
[1737166754860,0.1059072,104410.0,104400.0,0.51772332]
[1737166755116,0.1059072,104410.0,104400.0,0.66772332]
[1737166762033,0.1059072,104410.0,104400.0,0.66862212]
[1737166774313,0.16144629,104410.0,104400.0,0.55429254]
[1737166774516,0.16144629,104410.0,104400.0,0.3797848]
[1737166775649,0.67609779,104410.0,104400.0,0.3797848]
[1737166777515,0.67609779,104410.0,104400.0,0.3744648]
[1737166778162,0.77609779,104410.0,104400.0,0.3744648]
[1737166779821,0.87609779,104410.0,104400.0,0.3744648]
[1737166780248,0.97187379,104410.0,104400.0,0.3744648]
[1737166780446,0.87609779,104410.0,104400.0,0.3744648]
[1737166783059,0.96117826,104410.0,104400.0,0.3744648]
[1737166787848,1.05695426,104410.0,104400.0,0.3744648]
[1737166789440,0.96117826,104410.0,104400.0,0.3744648]
[1737166792697,0.87519146,104410.0,104400.0,0.3744648]
[1737166794828,0.96115537,104410.0,104400.0,0.3744648]
[1737166795881,0.87519146,104410.0,104400.0,0.3744648]
[1737166801018,0.81965237,104410.0,104400.0,0.3744648]
[1737166801215,0.87519146,104410.0,104400.0,0.3744648]
[1737166803828,0.67005237,104410.0,104400.0,0.3744648]
[1737166805573,0.36999365,104410.0,104400.0,0.3744648]
[1737166808158,0.21507161,104410.0,104400.0,0.70350561]
[1737166808333,0.21507161,104410.0,104400.0,0.73332501]
[1737166808737,0.21507161,104410.0,104400.0,0.70350561]
[1737166808923,0.21507161,104410.0,104400.0,0.733331]
[1737166809122,0.00047883,104410.0,104400.0,0.733331]
[1737166809323,0.00047883,104410.0,104400.0,0.70350561]
[1737166809500,0.00047883,104410.0,104400.0,0.73333129]
[1737166809700,0.00047883,104410.0,104400.0,0.70350561]
[1737166811072,0.00047883,104410.0,104400.0,0.73332767]
[1737166811358,0.00047883,104410.0,104400.0,0.70350561]
[1737166811585,0.00047883,104410.0,104400.0,0.73332294]
[1737166811987,0.00047883,104410.0,104400.0,0.70350561]
[1737166818239,0.00047883,104410.0,104400.0,0.62370561]
[1737166818780,0.13251792,104410.0,104400.0,0.5297848]
[1737166819524,0.13251792,104410.0,104400.0,0.3797848]
[1737166820623,0.32829392,104410.0,104400.0,0.3744648]
[1737166820981,0.37809392,104410.0,104400.0,0.3744648]
[1737166821203,0.5926867,104410.0,104400.0,0.3744648]
[1737166822155,0.89274542,104410.0,104400.0,0.3744648]
[1737166823808,1.04828451,104410.0,104400.0,0.2882588]
[1737166823988,1.06245355,104410.0,104400.0,0.2882588]
[1737166824193,1.04752532,104410.0,104400.0,0.2882588]
[1737166824387,0.94752532,104410.0,104400.0,0.2882588]
[1737166824571,0.89198623,104410.0,104400.0,0.2882588]
[1737166825144,0.94752532,104410.0,104400.0,0.2882588]
[1737166825899,0.64734034,104410.0,104400.0,0.2882588]
[1737166827836,0.66631991,104410.0,104400.0,0.2882588]
[1737166829356,0.83826111,104410.0,104400.0,0.2882588]
[1737166835007,0.66631991,104410.0,104400.0,0.2882588]
[1737166836443,0.70783185,104410.0,104400.0,0.2882588]
[1737166837179,0.66631991,104410.0,104400.0,0.2882588]
[1737166837667,0.68931991,104410.0,104400.0,0.0008988]
[1737166837899,0.83931991,104410.0,104400.0,0.0008988]
[1737166839045,0.88227635,104410.0,104400.0,0.0008988]
[1737166840220,1.35816221,104410.0,104400.0,0.0008988]
[1737166840444,1.45740302,104410.0,104400.0,0.0008988]
[1737166842518,1.71499929,104410.0,104400.0,0.0008988]
[1737166843736,1.61575848,104410.0,104400.0,0.0008988]
[1737166843971,0.88244966,104410.0,104400.0,0.0008988]
[1737166849077,0.72939191,104410.0,104400.0,0.0008988]
[1737166849224,0.835131,104410.0,104400.0,0.0008988]
[1737166849426,0.858131,104410.0,104400.0,0.0008988]
[1737166850465,0.71500438,104410.0,104400.0,0.0008988]
[1737166851481,1.20101623,104410.0,104400.0,0.0008988]
[1737166851743,1.10101623,104410.0,104400.0,0.0008988]
[1737166852549,0.98654658,104410.0,104400.0,0.0008988]
[1737166852751,0.88654658,104410.0,104400.0,0.0008988]
[1737166853667,0.78704658,104410.0,104400.0,0.0008988]
[1737166857660,1.00151623,104410.0,104400.0,0.0008988]
[1737166861360,0.91573582,104410.0,104400.0,0.0008988]
[1737166864052,0.76573582,104410.0,104400.0,0.0008988]
[1737166864297,0.6370652,104410.0,104400.0,0.0008988]
[1737166865688,0.7370652,104410.0,104400.0,0.0008988]
[1737166865915,0.4865093,104410.0,104400.0,0.0871048]
[1737166866143,0.3865093,104410.0,104400.0,0.1655048]
[1737166866397,0.4865093,104410.0,104400.0,0.1655048]
[1737166866646,0.70137163,104410.0,104400.0,0.1655048]
[1737166867915,0.75691072,104410.0,104400.0,0.1655048]
[1737166868897,0.85691072,104410.0,104400.0,0.1655048]
[1737166869094,0.75691072,104410.0,104400.0,0.1655048]
[1737166870741,0.70137163,104410.0,104400.0,0.1655048]
[1737166871369,0.80137163,104410.0,104400.0,0.1655048]
[1737166871609,0.70137163,104410.0,104400.0,0.1655048]
[1737166876564,0.69972373,104410.0,104400.0,0.1655048]
[1737166877012,0.59972373,104410.0,104400.0,0.2147048]
[1737166877163,0.59972373,104410.0,104400.0,0.3748047]
[1737166877566,0.59972373,104410.0,104400.0,0.31926561]
[1737166878049,0.54559088,104420.0,104400.0,0.23305961]
[1737166878252,0.54559088,104420.0,104410.0,0.163698]
[1737166879276,0.1162589,104420.0,104410.0,0.163698]
[1737166879843,0.0162589,104420.0,104410.0,0.163698]
[1737166880588,0.0162589,104420.0,104410.0,0.212898]
[1737166881573,0.0162589,104420.0,104410.0,0.086198]
[1737166881773,0.27179799,104420.0,104410.0,0.086198]
[1737166882354,0.36756499,104420.0,104410.0,0.086198]
[1737166883807,0.27179799,104420.0,104410.0,0.086198]
[1737166884630,0.36756499,104420.0,104410.0,0.086198]
[1737166884830,0.44516499,104420.0,104410.0,0.086198]
[1737166885727,0.34939799,104420.0,104410.0,0.086198]
[1737166885953,0.2162589,104420.0,104410.0,0.086198]
[1737166887710,0.1162589,104420.0,104410.0,0.086198]
[1737166888127,0.1162589,104420.0,104410.0,0.163698]
[1737166892772,0.1162589,104420.0,104410.0,0.086198]
[1737166897039,0.0162589,104420.0,104410.0,0.086198]
[1737166897239,0.1162589,104420.0,104410.0,0.086198]
[1737166899196,0.1162589,104420.0,104410.0,0.08709701]
[1737166916282,0.0162589,104420.0,104410.0,0.08709701]
[1737166916484,0.1162589,104420.0,104410.0,0.08709701]
[1737166920592,0.20220383,104420.0,104410.0,0.08709701]
[1737166920743,0.10220383,104420.0,104410.0,0.08709701]
[1737166922597,0.23112123,104420.0,104410.0,0.08709701]
[1737166928064,0.23112123,104420.0,104410.0,0.16309701]
[1737166928298,0.23112123,104420.0,104410.0,0.39845894]
[1737166928505,0.23112123,104420.0,104410.0,0.54679975]
[1737166929683,0.0162589,104420.0,104410.0,0.63270828]
[1737166930531,0.0162589,104420.0,104410.0,0.57716919]
[1737166930869,0.0162589,104420.0,104410.0,0.93338813]
[1737166931251,0.0162589,104420.0,104410.0,0.87784904]
[1737166931475,0.0162589,104420.0,104410.0,0.93338813]
[1737166931651,0.0162589,104420.0,104410.0,0.76157107]
[1737166936084,0.0162589,104420.0,104410.0,0.48169117]
[1737166936288,0.0162589,104420.0,104410.0,0.48701117]
[1737166936469,0.0162589,104420.0,104410.0,0.45718833]
[1737166937448,0.0162589,104420.0,104410.0,0.24241701]
[1737166941048,0.0930589,104420.0,104410.0,0.24241701]
[1737166942860,0.0930589,104420.0,104410.0,0.09241701]
[1737166944429,0.0930589,104420.0,104410.0,0.08709701]
[1737166945157,0.0930589,104420.0,104410.0,0.09241701]
[1737166950032,0.17900383,104420.0,104410.0,0.09241701]
[1737166952289,0.0930589,104420.0,104410.0,0.09241701]
[1737166966661,0.14859799,104420.0,104410.0,0.08709701]
[1737166966826,0.54564489,104420.0,104410.0,0.00089901]
[1737166968334,0.80324116,104420.0,104410.0,0.00089901]
[1737166969125,1.0181512,104420.0,104410.0,0.00089901]
[1737166969330,1.0411512,104420.0,104410.0,0.00089901]
[1737166970400,0.82624116,104420.0,104410.0,0.00089901]
[1737166970961,0.84545618,104420.0,104410.0,0.00089901]
[1737166971778,1.06026267,104420.0,104410.0,0.00089901]
[1737166972692,1.06990281,104420.0,104410.0,0.00089901]
[1737166972915,0.85509632,104420.0,104410.0,0.00089901]
[1737166974303,0.57828503,104420.0,104410.0,0.00089901]
[1737166975367,0.96477408,104420.0,104410.0,0.00089901]
[1737166980075,0.79300117,104420.0,104410.0,0.00089901]
[1737166980764,0.277476,104410.0,104400.0,0.25293632]
[1737166980970,0.4322559,104410.0,104400.0,0.25293632]
[1737166981628,0.4322559,104410.0,104400.0,0.08052332]
[1737166982760,0.1813,104400.0,104390.0,0.258626]
[1737166982978,0.23683909,104400.0,104390.0,0.25867673]
[1737166983863,0.32274955,104400.0,104390.0,0.25867673]
[1737166985389,0.42199036,104400.0,104390.0,0.25867673]
[1737166985948,0.57331445,104400.0,104390.0,0.25867673]
[1737166986173,0.49631445,104400.0,104390.0,5.073e-05]
[1737166986369,0.59631445,104400.0,104390.0,5.073e-05]
[1737166986653,0.64421445,104400.0,104390.0,5.073e-05]
[1737166987085,0.94490107,104400.0,104390.0,5.073e-05]
[1737166987215,1.01309826,104400.0,104390.0,5.073e-05]
[1737166987856,1.01309827,104400.0,104390.0,5.073e-05]
[1737166989117,0.94490108,104400.0,104390.0,5.073e-05]
[1737166990316,1.0736843,104400.0,104390.0,0.00094974]
[1737166994386,1.08350684,104400.0,104390.0,0.00094974]
[1737166994682,1.16929565,104400.0,104390.0,0.00094974]
[1737167001368,1.16972375,104400.0,104390.0,0.00094974]
[1737167001571,1.26896456,104400.0,104390.0,0.00094974]
[1737167002018,1.37450365,104400.0,104390.0,0.00094974]
[1737167002843,0.98811069,104400.0,104390.0,0.00094974]
[1737167003980,1.24570696,104400.0,104390.0,0.00094974]
[1737167006104,1.19016787,104400.0,104390.0,0.00094974]
[1737167008166,0.97539171,104400.0,104390.0,0.00094974]
[1737167010442,1.18989341,104400.0,104390.0,0.00094974]
[1737167012699,0.93229714,104400.0,104390.0,0.00094974]
[1737167012894,0.83305633,104400.0,104390.0,0.00094974]
[1737167013108,0.62531724,104400.0,104390.0,0.00094974]
[1737167013489,0.70385633,104400.0,104390.0,0.00094974]
[1737167014676,0.70385633,104400.0,104390.0,0.13256474]
[1737167014677,0.5697097,104400.0,104390.0,0.13256474]
[1737167014961,0.5654947,104400.0,104390.0,0.21216474]
[1737167015077,0.73722773,104400.0,104390.0,0.21216474]
[1737167015514,0.83722773,104400.0,104390.0,0.21216474]
[1737167015772,0.73722773,104400.0,104390.0,0.21216474]
[1737167016231,0.95190606,104400.0,104390.0,0.21216474]
[1737167016413,1.05190606,104400.0,104390.0,0.21216474]
[1737167017177,0.95190606,104400.0,104390.0,0.21216474]
[1737167017480,1.05190606,104400.0,104390.0,0.21216474]
[1737167017700,0.96603473,104400.0,104390.0,0.21216474]
[1737167017903,0.86603473,104400.0,104390.0,0.21216474]
[1737167018617,0.96603473,104400.0,104390.0,0.21216474]
[1737167021201,1.0519325,104400.0,104390.0,0.21216474]
[1737167023206,0.96603473,104400.0,104390.0,0.21216474]
[1737167024060,0.96603473,104400.0,104390.0,0.12594974]
[1737167025517,0.96603473,104400.0,104390.0,0.04634974]
[1737167026425,0.83722773,104400.0,104390.0,0.04634974]
[1737167026581,0.83722773,104400.0,104390.0,0.00094974]
[1737167029226,0.8516529,104400.0,104390.0,0.00094974]
[1737167030451,0.67991987,104400.0,104390.0,0.00094974]
[1737167032463,0.6654947,104400.0,104390.0,0.00094974]
[1737167032632,0.92309097,104400.0,104390.0,0.00094974]
[1737167033589,0.93251911,104400.0,104390.0,0.00094974]
[1737167033890,0.92309097,104400.0,104390.0,0.00094974]
[1737167036949,0.6654947,104400.0,104390.0,0.00094974]
[1737167037650,0.6654947,104400.0,104390.0,0.08716474]
[1737167037851,0.6654947,104400.0,104390.0,0.00094974]
[1737167038061,0.60995561,104400.0,104390.0,0.00094974]
[1737167038390,0.6654947,104400.0,104390.0,0.00094974]
[1737167040271,0.83749962,104400.0,104390.0,0.00094974]
[1737167040804,0.78196053,104400.0,104390.0,0.00094974]
[1737167041656,0.89197952,104400.0,104390.0,0.00094974]
[1737167041861,1.08887952,104400.0,104390.0,0.00094974]
[1737167043792,1.43610595,104400.0,104390.0,0.00094974]
[1737167044934,0.99161035,104400.0,104390.0,0.00094974]
[1737167045902,1.43610595,104400.0,104390.0,0.00094974]
[1737167047311,1.33686514,104400.0,104390.0,0.00094974]
[1737167049353,1.35582931,104400.0,104390.0,0.00094974]
[1737167062835,0.87996968,104400.0,104390.0,0.00094974]
[1737167067719,0.83306968,104400.0,104390.0,0.00094974]
[1737167069090,0.65083059,104400.0,104390.0,0.00094974]
[1737167069336,0.55332733,104400.0,104390.0,0.07804974]
[1737167069502,0.57632733,104400.0,104390.0,0.07804974]
[1737167069708,0.63186642,104400.0,104390.0,0.07804974]
[1737167070312,0.73186642,104400.0,104390.0,0.07804974]
[1737167070512,0.6889104,104400.0,104390.0,0.07804974]
[1737167070873,0.63337131,104400.0,104390.0,0.16426474]
[1737167071107,0.6889104,104400.0,104390.0,0.16426474]
[1737167071541,0.53337131,104400.0,104390.0,0.16426474]
[1737167071779,0.51037131,104400.0,104390.0,0.16426474]
[1737167072467,0.41458631,104400.0,104390.0,0.16426474]
[1737167072754,0.71545648,104400.0,104390.0,0.21226474]
[1737167074049,0.81124148,104400.0,104390.0,0.21226474]
[1737167075085,0.8014103,104400.0,104390.0,0.21226474]
[1737167077088,0.60216949,104400.0,104390.0,0.21226474]
[1737167077329,0.38725209,104400.0,104390.0,0.21226474]
[1737167079200,0.21532628,104400.0,104390.0,0.21226474]
[1737167081100,0.21532628,104400.0,104390.0,0.26780383]
[1737167081306,0.21532628,104400.0,104390.0,0.41780383]
[1737167082619,0.0004281,104400.0,104390.0,0.41780383]
[1737167089223,0.0004281,104400.0,104390.0,0.42308383]
[1737167101007,0.0004281,104400.0,104390.0,0.52232464]
[1737167101365,0.0004281,104400.0,104390.0,0.46678555]
[1737167102874,0.0004281,104400.0,104390.0,0.46150555]
[1737167102992,0.0004281,104400.0,104390.0,0.46678555]
[1737167105357,0.0004281,104400.0,104390.0,0.27223307]
[1737167105558,0.0004281,104400.0,104390.0,0.24244474]
[1737167105758,0.0004281,104400.0,104390.0,0.23716474]
[1737167106116,0.0004281,104400.0,104390.0,0.24244474]
[1737167106324,0.0004281,104400.0,104390.0,0.23716474]
[1737167106519,0.0780281,104400.0,104390.0,0.23716474]
[1737167111166,0.1780281,104400.0,104390.0,0.23716474]
[1737167113460,0.1780281,104400.0,104390.0,0.26698801]
[1737167117269,0.1004281,104400.0,104390.0,0.26698801]
[1737167138950,0.1004281,104400.0,104390.0,0.11698801]
[1737167138951,0.23616719,104400.0,104390.0,0.11698801]
[1737167139152,0.6362879,104400.0,104390.0,0.11698801]
[1737167139353,0.577293,104400.0,104390.0,0.08716474]
[1737167139776,0.42596891,104400.0,104390.0,0.08716474]
[1737167139984,0.481508,104400.0,104390.0,0.08716474]
[1737167140559,0.86835121,104400.0,104390.0,0.08716474]
[1737167141322,0.96413621,104400.0,104390.0,0.08716474]
[1737167141612,0.99745186,104400.0,104390.0,0.08716474]
[1737167143793,1.09323686,104400.0,104390.0,0.08716474]
[1737167145737,1.17925651,104400.0,104390.0,0.08716474]
[1737167145936,1.08347151,104400.0,104390.0,0.08716474]
[1737167146140,0.82869161,104400.0,104390.0,0.08716474]
[1737167146353,0.70239161,104400.0,104390.0,0.14270383]
[1737167146555,0.70239161,104400.0,104390.0,0.08716474]
[1737167148218,0.1004281,104400.0,104390.0,0.08716474]
[1737167148845,0.1004281,104400.0,104390.0,0.08812259]
[1737167151226,0.1004281,104400.0,104390.0,0.08716474]
[1737167151359,0.1004281,104400.0,104390.0,0.23716474]
[1737167155167,0.1004281,104400.0,104390.0,0.26697234]
[1737167155625,0.1004281,104400.0,104390.0,0.23716474]
[1737167155835,0.1004281,104400.0,104390.0,0.26697199]
[1737167159054,0.1004281,104400.0,104390.0,0.23716474]
[1737167176418,0.1004281,104400.0,104390.0,0.26699244]
[1737167180708,0.1004281,104400.0,104390.0,0.34929244]
[1737167180887,0.1004281,104400.0,104390.0,0.26699244]
[1737167190302,0.1004281,104400.0,104390.0,0.27227244]
[1737167191272,0.23416719,104400.0,104390.0,0.27227244]
[1737167191622,0.1786281,104400.0,104390.0,0.27227244]
[1737167191828,0.1786281,104400.0,104390.0,0.26699244]
[1737167192425,0.1786281,104400.0,104390.0,0.23716474]
[1737167192646,0.1786281,104400.0,104390.0,0.26702638]
[1737167192841,0.56567421,104400.0,104390.0,0.26702638]
[1737167193597,0.56567421,104400.0,104390.0,0.26702432]
[1737167195100,0.3937484,104400.0,104390.0,0.26702432]
[1737167198673,0.56567421,104400.0,104390.0,0.26702432]
[1737167199516,0.3937484,104400.0,104390.0,0.26702432]
[1737167202395,0.3937484,104400.0,104390.0,0.23716474]
[1737167202600,0.3937484,104400.0,104390.0,0.26702429]
[1737167203099,0.56567421,104400.0,104390.0,0.26702429]
[1737167204348,0.56567421,104400.0,104390.0,0.23716474]
[1737167204843,0.56567421,104400.0,104390.0,0.26702996]
[1737167205993,0.3937484,104400.0,104390.0,0.26702996]
[1737167206802,0.3937484,104400.0,104390.0,0.23716474]
[1737167208465,0.56567421,104400.0,104390.0,0.26703031]
[1737167209584,0.56567421,104400.0,104390.0,0.23716474]
[1737167209971,0.56567421,104400.0,104390.0,0.26702924]
[1737167210371,0.56567421,104400.0,104390.0,0.23716474]
[1737167210797,0.60061158,104400.0,104390.0,0.08716474]